fUSD/lending_fUSD_20250113
["ID","MTS","AMOUNT","RATE_DAILY","PERIOD"]
[348767125,1736776259808,-631.75,0.00012189,2]
[348767126,1736776259818,-500.0,0.00012189,2]
[348767127,1736776259829,-500.0,0.00012189,2]
[348767128,1736776259839,-544.1,0.00012189,2]
[348767129,1736776259850,-447.63856933,0.00012189,2]
[348767130,1736776259859,-527.28,0.00012189,2]
[348767131,1736776259869,-500.0,0.00012189,2]
[348767132,1736776259878,-186.92,0.00012189,2]
[348767133,1736776259888,-379.55527354,0.00012189,2]
[348767134,1736776259899,-613.61,0.00012189,2]
[348767135,1736776259908,-500.0,0.00012189,2]
[348767136,1736776259919,-500.0,0.00012189,2]
[348767137,1736776259929,-500.0,0.00012189,2]
[348767138,1736776259940,-500.0,0.00012189,2]
[348767139,1736776259951,-525.92,0.00012189,2]
[348767140,1736776259961,-500.0,0.00012189,2]
[348767141,1736776259971,-500.0,0.00012189,2]
[348767142,1736776259982,-500.0,0.00012189,2]
[348767143,1736776259992,-500.0,0.00012189,2]
[348767144,1736776260002,-514.31,0.00012189,2]
[348767145,1736776260011,-500.0,0.00012189,2]
[348767146,1736776260022,-500.0,0.00012189,2]
[348767147,1736776260032,-500.0,0.00012189,2]
[348767148,1736776260043,-500.0,0.00012189,2]
[348767149,1736776260055,-500.0,0.00012189,2]
[348767150,1736776260066,-500.0,0.00012189,2]
[348767151,1736776260077,-500.0,0.0001219,2]
[348767152,1736776260089,-1116.54,0.00012191,2]
[348767153,1736776260100,-1473.48,0.00012191,2]
[348767154,1736776260111,-1006.4,0.00012191,2]
[348767155,1736776260122,-773.79,0.00012191,2]
[348767156,1736776260133,-61487.18052417,0.000122,2]
[348767157,1736776260144,-438.41103873,0.000122,2]
[348767158,1736776260156,-1069.82645226,0.000122,2]
[348767159,1736776260166,-275.26629793,0.000122,2]
[348767160,1736776260176,-687.73825975,0.00012217,2]
[348767161,1736776260187,-2400.0,0.0001222,2]
[348767162,1736776260197,-500.0,0.0001227,2]
[348767163,1736776260209,-500.0,0.00012279,2]
[348767164,1736776260220,-500.0,0.00012279,2]
[348767165,1736776260231,-154.999205,0.0001228,3]
[348767166,1736776260242,-23111.5666936,0.0001229,2]
[348767167,1736776260252,-2000.0,0.00012299,2]
[348767168,1736776260263,-150.0,0.00012299,2]
[348767169,1736776260274,-150.0,0.00012299,2]
[348767170,1736776260284,-4894.74948958,0.00012299,2]
[348767171,1736776260294,-2318.09952425,0.00012299,2]
[348767172,1736776260306,-2000.0,0.00012299,2]
[348767173,1736776260316,-2000.0,0.00012299,2]
[348767174,1736776260326,-2000.0,0.00012299,2]
[348767175,1736776260337,-2000.0,0.00012299,2]
[348767176,1736776260347,-150.0,0.00012299,2]
[348767177,1736776260357,-30943.7999014,0.00012299,2]
[348767178,1736776260367,-500.0,0.00012299,2]
[348767179,1736776260377,-150.0,0.00012299,2]
[348767180,1736776260387,-2347.97833925,0.00012299,2]
[348767181,1736776260397,-150.0,0.00012299,2]
[348767182,1736776260408,-150.0,0.00012299,2]
[348767183,1736776260418,-2427639.8496165,0.000123,4]
[348767184,1736776260910,-541.64756007,0.000123,4]
[348767185,1736776260923,-300.84344787,0.000123,4]
[348767186,1736776260960,-1079.21,0.00012187,2]
[348767187,1736776260969,-1305.78999,0.000123,4]
[348767188,1736776261317,-500.0,9.997e-05,2]
[348767189,1736776261327,-500.0,0.00010271,2]
[348767190,1736776261336,-500.0,0.00010545,2]
[348767191,1736776261345,-99.01191448,0.00010819,2]
[348767192,1736776261357,-400.98808552,0.00010819,2]
[348767193,1736776261367,-500.0,0.00011091,2]
[348767194,1736776261378,-1.12919198,0.00011093,2]
[348767195,1736776261389,-498.87080802,0.00011093,2]
[348767196,1736776261399,-461.26,0.00011365,2]
[348767197,1736776261411,-3.06671198,0.00011367,2]
[348767198,1736776261433,-496.93328802,0.00011367,2]
[348767199,1736776261443,-267.96986531,0.00011641,2]
[348767200,1736776261490,-313.16220338,9.997e-05,2]
[348767201,1736776261591,-186.83779662,9.997e-05,2]
[348767202,1736776261601,-232.03013469,0.00011641,2]
[348767203,1736776261610,-500.0,0.00011915,2]
[348767204,1736776261619,-1579.47,0.00012279,2]
[348767205,1736776261629,-234225.36544922,0.000123,4]
[348767206,1736776261640,-486971.1418688,0.000123,4]
[348767207,1736776261652,-813442.41856161,0.000123,4]
[348767208,1736776261706,-400.18032779,0.00012189,2]
[348767209,1736776261718,-99.81967221,0.00012189,2]
[348767210,1736776261727,-938.08460714,0.000123,4]
[348767211,1736776261985,-181.77,9.995e-05,2]
[348767212,1736776261999,-500.0,9.996e-05,2]
[348767213,1736776262009,-2164.05013108,0.000123,4]
[348767214,1736776262022,-1125.84,0.000123,4]
[348767215,1736776262033,-289594.32645118,0.000123,4]
[348767216,1736776262042,-489918.94226234,0.000123,2]
[348767217,1736776262428,-315.51417996,9.995e-05,2]
[348767218,1736776262443,-184.48582004,9.995e-05,2]
[348767219,1736776262452,-500.0,0.00010269,2]
[348767220,1736776262461,-97.32542682,0.00010543,2]
[348767221,1736776307109,1007.29414379,0.00023,120]
[348767222,1736776333830,316.09,8.969e-05,2]
[348767223,1736776503767,10000.0,0.00023,120]
[348767225,1736776963821,839.93,8.219e-05,2]
[348767226,1736776991888,500.0,0.00022911,120]
[348767227,1736776994073,2000.0,0.00022911,120]
[348767230,1736777032934,200.0,0.00022911,120]
[348767231,1736777041692,1000.0,0.00023,120]
[348767232,1736777106549,-3682.1588,0.00018345,30]
[348767233,1736777106594,-500.0,0.00019178,30]
[348767234,1736777106629,-267.751722,0.00019178,30]
[348767235,1736777106672,-349.44,0.000192,31]
[348767236,1736777106718,-349.44,0.000192,31]
[348767237,1736777106765,-349.44,0.000192,31]
[348767238,1736777106807,-349.44,0.000192,31]
[348767239,1736777106848,-349.44,0.000192,31]
[348767240,1736777106888,-349.44,0.000192,31]
[348767241,1736777106931,-349.44,0.000192,31]
[348767242,1736777106973,-349.44,0.000192,31]
[348767243,1736777107250,-349.44,0.000192,31]
[348767244,1736777107291,-349.44,0.000192,31]
[348767245,1736777107333,-349.44,0.000192,31]
[348767246,1736777107373,-349.44,0.000192,31]
[348767247,1736777107429,-349.44,0.000192,31]
[348767248,1736777107483,-349.44,0.000192,31]
[348767249,1736777107529,-349.44,0.000192,31]
[348767250,1736777107573,-349.44,0.000192,31]
[348767251,1736777107646,-428.38064235,0.00019886,30]
[348767252,1736777107694,-263.48243026,0.0002,60]
[348767253,1736777107735,-482.76513717,0.0002,30]
[348767254,1736777107772,-501.794851,0.0002,30]
[348767259,1736777328271,-1989.72,8.969e-05,2]
[348767260,1736777328547,-250.0,8.969e-05,2]
[348767261,1736777328570,-1000.0,8.969e-05,2]
[348767262,1736777328595,-418.96,8.969e-05,2]
[348767263,1736777328617,-3092.27,9.482e-05,2]
[348767264,1736777328639,-981.96693255,9.641e-05,2]
[348767265,1736777328660,-170.13,9.666e-05,2]
[348767266,1736777328682,-276.79,9.741e-05,2]
[348767267,1736777328704,-980.23306745,9.864e-05,2]
[348767268,1736777333728,-10000.0,9.864e-05,2]
[348767275,1736777354315,-436.4111,9.382e-05,2]
[348767276,1736777354338,-1152.9,9.614e-05,2]
[348767277,1736777354361,-8347.76693255,9.864e-05,2]
[348767278,1736777354384,-62.92196745,9.894e-05,2]
[348767279,1736777413789,283.08,0.000192,31]
[348767280,1736777413902,283.08,0.000192,31]
[348767281,1736777414004,283.08,0.000192,31]
[348767282,1736777414102,283.08,0.000192,31]
[348767283,1736777414164,283.08,0.000192,31]
[348767284,1736777414346,283.08,0.000192,31]
[348767285,1736777414424,283.08,0.000192,31]
[348767286,1736777414502,283.08,0.000192,31]
[348767287,1736777414554,283.08,0.000192,31]
[348767288,1736777414700,283.08,0.000192,31]
[348767289,1736777414838,283.08,0.000192,31]
[348767290,1736777414973,283.08,0.000192,31]
[348767291,1736777415096,283.08,0.000192,31]
[348767292,1736777415199,283.08,0.000192,31]
[348767293,1736777417577,283.08,0.000192,31]
[348767294,1736777417636,283.08,0.000192,31]
[348767312,1736777432084,-248.7,9.455e-05,2]
[348767313,1736777432094,-981.96693256,9.895e-05,2]
[348767314,1736777432104,-346.91042057,9.994e-05,2]
[348767315,1736777432115,-300.0,9.994e-05,2]
[348767316,1736777432125,-500.0,9.995e-05,2]
[348767317,1736777432134,-697.84,9.995e-05,2]
[348767318,1736777432144,-920.92,9.995e-05,2]
[348767319,1736777432154,-629.0,9.995e-05,2]
[348767320,1736777432163,-515.86,9.995e-05,2]
[348767321,1736777432172,-500.0,9.995e-05,2]
[348767322,1736777432182,-500.0,9.995e-05,2]
[348767323,1736777432191,-500.0,9.995e-05,2]
[348767324,1736777432200,-535.48,9.995e-05,2]
[348767325,1736777432210,-500.0,9.995e-05,2]
[348767326,1736777432220,-661.51,9.995e-05,2]
[348767327,1736777432229,-885.48,9.995e-05,2]
[348767328,1736777432239,-943.92,9.995e-05,2]
[348767329,1736777432248,-1290.55,9.995e-05,2]
[348767330,1736777432258,-500.0,9.995e-05,2]
[348767331,1736777432267,-500.0,9.995e-05,2]
[348767332,1736777432276,-500.0,9.995e-05,2]
[348767333,1736777432286,-500.0,9.995e-05,2]
[348767334,1736777432295,-500.0,9.995e-05,2]
[348767335,1736777432305,-500.0,9.995e-05,2]
[348767336,1736777432315,-3389.45,9.995e-05,2]
[348767337,1736777432324,-500.0,9.995e-05,2]
[348767338,1736777432336,-510.15,9.995e-05,2]
[348767339,1736777432345,-500.0,9.995e-05,2]
[348767340,1736777432355,-500.0,9.995e-05,2]
[348767341,1736777432364,-500.0,9.995e-05,2]
[348767342,1736777432374,-500.0,9.995e-05,2]
[348767343,1736777432383,-500.0,9.995e-05,2]
[348767344,1736777432394,-500.0,9.995e-05,2]
[348767345,1736777432404,-500.0,9.995e-05,2]
[348767346,1736777432414,-500.0,9.995e-05,2]
[348767347,1736777432425,-500.0,9.995e-05,2]
[348767348,1736777432435,-500.0,9.995e-05,2]
[348767349,1736777432445,-500.0,9.995e-05,2]
[348767350,1736777432454,-500.0,9.995e-05,2]
[348767351,1736777432464,-532.09,9.995e-05,2]
[348767352,1736777432474,-500.0,9.995e-05,2]
[348767353,1736777432484,-500.0,9.995e-05,2]
[348767354,1736777432493,-500.0,9.995e-05,2]
[348767355,1736777432505,-500.0,9.995e-05,2]
[348767357,1736777432514,-500.0,9.995e-05,2]
[348767358,1736777432524,-500.0,9.995e-05,2]
[348767360,1736777432533,-500.0,9.995e-05,2]
[348767362,1736777432543,-500.0,9.995e-05,2]
[348767364,1736777432553,-500.0,9.995e-05,2]
[348767366,1736777432562,-500.0,9.995e-05,2]
[348767368,1736777432573,-500.0,9.995e-05,2]
[348767370,1736777432586,-500.0,9.995e-05,2]
[348767372,1736777432596,-500.0,9.995e-05,2]
[348767374,1736777432605,-500.0,9.995e-05,2]
[348767376,1736777432615,-500.0,9.995e-05,2]
[348767378,1736777432625,-500.0,9.995e-05,2]
[348767380,1736777432634,-500.0,9.995e-05,2]
[348767382,1736777432644,-1763.38,9.995e-05,2]
[348767384,1736777432653,-500.0,9.995e-05,2]
[348767386,1736777432663,-500.0,9.995e-05,2]
[348767389,1736777432672,-500.0,9.995e-05,2]
[348767391,1736777432681,-500.0,9.995e-05,2]
[348767395,1736777432690,-500.0,9.995e-05,2]
[348767398,1736777432700,-500.0,9.995e-05,2]
[348767400,1736777432709,-500.0,9.995e-05,2]
[348767402,1736777432718,-500.0,9.995e-05,2]
[348767404,1736777432727,-500.0,9.995e-05,2]
[348767406,1736777432736,-500.0,9.995e-05,2]
[348767408,1736777432745,-500.0,9.995e-05,2]
[348767410,1736777432755,-647.68,9.995e-05,2]
[348767412,1736777432765,-500.0,9.995e-05,2]
[348767414,1736777432774,-500.0,9.995e-05,2]
[348767416,1736777432783,-500.0,9.995e-05,2]
[348767418,1736777432792,-150.99,9.995e-05,2]
[348767419,1736777432802,-500.0,9.995e-05,2]
[348767421,1736777432811,-1006.54,9.995e-05,2]
[348767423,1736777432821,-500.0,9.995e-05,2]
[348767425,1736777432830,-500.0,9.995e-05,2]
[348767427,1736777432841,-500.0,9.995e-05,2]
[348767429,1736777432850,-500.0,9.995e-05,2]
[348767431,1736777432859,-500.0,9.995e-05,2]
[348767433,1736777432869,-1186.93,9.995e-05,2]
[348767435,1736777432879,-500.0,9.995e-05,2]
[348767437,1736777432888,-500.0,9.995e-05,2]
[348767439,1736777432898,-1867.13,9.995e-05,2]
[348767441,1736777432907,-749.12,9.995e-05,2]
[348767443,1736777432917,-554.67015027,9.995e-05,2]
[348767445,1736777432926,-500.0,9.995e-05,2]
[348767447,1736777432935,-500.0,9.995e-05,2]
[348767449,1736777432944,-191.09412807,9.995e-05,2]
[348767451,1736777432954,-500.0,9.995e-05,2]
[348767453,1736777432963,-872.88,9.995e-05,2]
[348767455,1736777432973,-551.49,9.995e-05,2]
[348767457,1736777432982,-500.0,9.995e-05,2]
[348767459,1736777432992,-865.87,9.995e-05,2]
[348767461,1736777433001,-500.0,9.995e-05,2]
[348767463,1736777433010,-797.99,9.995e-05,2]
[348767465,1736777433020,-940.25,9.995e-05,2]
[348767467,1736777433031,-835.52,9.995e-05,2]
[348767469,1736777433041,-671.58,9.995e-05,2]
[348767471,1736777433052,-500.0,9.995e-05,2]
[348767473,1736777433062,-500.0,9.996e-05,2]
[348767475,1736777433072,-500.0,9.996e-05,2]
[348767477,1736777433082,-500.0,9.996e-05,2]
[348767479,1736777433094,-500.0,9.996e-05,2]
[348767481,1736777433104,-387.31369628,9.996e-05,2]
[348767483,1736777433114,-500.0,9.996e-05,2]
[348767485,1736777433125,-500.0,9.996e-05,2]
[348767487,1736777433134,-500.0,9.996e-05,2]
[348767489,1736777433146,-500.0,9.996e-05,2]
[348767491,1736777433156,-500.0,9.996e-05,2]
[348767493,1736777433169,-500.0,9.996e-05,2]
[348767495,1736777433178,-500.0,9.996e-05,2]
[348767497,1736777433188,-500.0,9.996e-05,2]
[348767499,1736777433198,-500.0,9.996e-05,2]
[348767502,1736777433219,-500.0,9.996e-05,2]
[348767504,1736777433229,-500.95048896,9.996e-05,2]
[348767506,1736777433239,-500.0,9.996e-05,2]
[348767508,1736777433248,-500.0,9.996e-05,2]
[348767510,1736777433259,-500.0,9.996e-05,2]
[348767512,1736777433270,-500.0,9.996e-05,2]
[348767514,1736777433280,-500.0,9.996e-05,2]
[348767516,1736777433291,-500.0,9.996e-05,2]
[348767518,1736777433302,-500.0,9.996e-05,2]
[348767520,1736777433313,-500.0,9.996e-05,2]
[348767522,1736777433323,-500.0,9.996e-05,2]
[348767524,1736777433335,-500.0,9.996e-05,2]
[348767526,1736777433344,-500.0,9.996e-05,2]
[348767528,1736777433355,-500.0,9.996e-05,2]
[348767530,1736777433365,-500.0,9.996e-05,2]
[348767532,1736777433375,-500.0,9.996e-05,2]
[348767534,1736777433386,-500.0,9.996e-05,2]
[348767536,1736777433397,-500.0,9.996e-05,2]
[348767538,1736777433407,-500.0,9.996e-05,2]
[348767540,1736777433417,-500.0,9.996e-05,2]
[348767542,1736777433427,-500.0,9.996e-05,2]
[348767544,1736777433438,-500.0,9.996e-05,2]
[348767546,1736777433448,-500.0,9.996e-05,2]
[348767548,1736777433458,-500.0,9.996e-05,2]
[348767550,1736777433468,-500.0,9.996e-05,2]
[348767552,1736777433479,-500.0,9.996e-05,2]
[348767554,1736777433489,-500.0,9.996e-05,2]
[348767556,1736777433499,-500.0,9.996e-05,2]
[348767559,1736777433525,-500.0,9.996e-05,2]
[348767562,1736777433542,-522.41767288,9.996e-05,2]
[348767564,1736777433557,-500.0,9.996e-05,2]
[348767566,1736777433572,-500.0,9.996e-05,2]
[348767567,1736777433587,-433.15052888,9.996e-05,2]
[348767568,1736777433600,-500.0,9.996e-05,2]
[348767569,1736777433614,-500.0,9.996e-05,2]
[348767570,1736777433629,-500.0,9.996e-05,2]
[348767571,1736777433641,-500.0,9.996e-05,2]
[348767572,1736777433654,-500.0,9.996e-05,2]
[348767573,1736777433667,-500.0,9.996e-05,2]
[348767574,1736777433680,-500.0,9.996e-05,2]
[348767575,1736777433694,-500.0,9.996e-05,2]
[348767577,1736777433707,-500.0,9.996e-05,2]
[348767580,1736777433726,-500.0,9.996e-05,2]
[348767582,1736777433737,-500.0,9.996e-05,2]
[348767584,1736777433748,-500.0,9.996e-05,2]
[348767586,1736777433760,-224.22598151,9.996e-05,2]
[348767592,1736777433807,-275.77401849,9.996e-05,2]
[348767594,1736777433820,-500.0,9.996e-05,2]
[348767596,1736777433833,-500.0,9.996e-05,2]
[348767599,1736777433847,-500.0,9.996e-05,2]
[348767601,1736777433860,-500.0,9.996e-05,2]
[348767603,1736777433873,-500.0,9.996e-05,2]
[348767606,1736777433886,-500.0,9.996e-05,2]
[348767608,1736777433899,-500.0,9.996e-05,2]
[348767610,1736777433911,-500.0,9.996e-05,2]
[348767613,1736777433922,-500.0,9.996e-05,2]
[348767615,1736777433936,-500.0,9.996e-05,2]
[348767617,1736777433948,-500.0,9.996e-05,2]
[348767619,1736777433960,-500.0,9.996e-05,2]
[348767622,1736777433972,-500.0,9.996e-05,2]
[348767624,1736777433984,-500.0,9.996e-05,2]
[348767626,1736777433996,-500.0,9.996e-05,2]
[348767628,1736777434007,-500.0,9.996e-05,2]
[348767630,1736777434020,-500.0,9.996e-05,2]
[348767633,1736777434032,-500.0,9.996e-05,2]
[348767635,1736777434045,-500.0,9.996e-05,2]
[348767638,1736777434061,-500.0,9.996e-05,2]
[348767640,1736777434075,-500.0,9.996e-05,2]
[348767643,1736777434089,-500.0,9.996e-05,2]
[348767645,1736777434103,-500.0,9.996e-05,2]
[348767647,1736777434115,-500.0,9.996e-05,2]
[348767649,1736777434125,-500.0,9.996e-05,2]
[348767651,1736777434137,-500.0,9.996e-05,2]
[348767654,1736777434148,-470.2523349,9.996e-05,2]
[348767656,1736777434161,-500.0,9.996e-05,2]
[348767658,1736777434176,-500.0,9.996e-05,2]
[348767661,1736777434193,-500.0,9.996e-05,2]
[348767663,1736777434204,-500.0,9.996e-05,2]
[348767665,1736777434215,-500.0,9.996e-05,2]
[348767667,1736777434226,-500.0,9.996e-05,2]
[348767669,1736777434237,-500.0,9.996e-05,2]
[348767672,1736777434249,-500.0,9.996e-05,2]
[348767674,1736777434263,-500.0,9.996e-05,2]
[348767677,1736777434279,-500.0,9.996e-05,2]
[348767679,1736777434292,-500.0,9.996e-05,2]
[348767681,1736777434305,-500.0,9.996e-05,2]
[348767683,1736777434318,-500.0,9.996e-05,2]
[348767685,1736777434330,-500.0,9.996e-05,2]
[348767687,1736777434343,-507.51837772,9.996e-05,2]
[348767689,1736777434357,-500.0,9.996e-05,2]
[348767692,1736777434370,-500.0,9.996e-05,2]
[348767695,1736777434395,-500.0,9.996e-05,2]
[348767698,1736777434411,-500.0,9.996e-05,2]
[348767700,1736777434425,-471.61450665,9.996e-05,2]
[348767702,1736777434439,-500.0,9.996e-05,2]
[348767704,1736777434451,-500.0,9.996e-05,2]
[348767707,1736777434465,-500.0,9.996e-05,2]
[348767709,1736777434479,-500.0,9.996e-05,2]
[348767711,1736777434492,-500.0,9.996e-05,2]
[348767713,1736777434508,-500.0,9.996e-05,2]
[348767716,1736777434526,-500.0,9.996e-05,2]
[348767718,1736777434538,-500.0,9.996e-05,2]
[348767721,1736777434552,-500.0,9.996e-05,2]
[348767723,1736777434564,-500.0,9.996e-05,2]
[348767725,1736777434577,-500.0,9.996e-05,2]
[348767727,1736777434595,-500.0,9.996e-05,2]
[348767730,1736777434610,-283.7779964,9.996e-05,2]
[348767732,1736777434622,-64.1655478,9.996e-05,2]
[348767735,1736777434640,-435.8344522,9.996e-05,2]
[348767737,1736777434652,-500.0,9.996e-05,2]
[348767739,1736777434664,-500.0,9.996e-05,2]
[348767742,1736777434678,-500.0,9.996e-05,2]
[348767744,1736777434690,-500.0,9.996e-05,2]
[348767746,1736777434701,-500.0,9.996e-05,2]
[348767748,1736777434714,-500.0,9.996e-05,2]
[348767751,1736777434726,-500.0,9.996e-05,2]
[348767753,1736777434739,-385.18622289,9.996e-05,2]
[348767755,1736777434753,-114.81377711,9.996e-05,2]
[348767758,1736777434764,-500.0,9.996e-05,2]
[348767760,1736777434776,-500.0,9.996e-05,2]
[348767762,1736777434787,-500.0,9.996e-05,2]
[348767764,1736777434800,-500.0,9.996e-05,2]
[348767767,1736777434811,-500.0,9.996e-05,2]
[348767769,1736777434823,-500.0,9.996e-05,2]
[348767771,1736777434835,-500.0,9.996e-05,2]
[348767773,1736777434846,-500.0,9.996e-05,2]
[348767775,1736777434858,-500.0,9.996e-05,2]
[348767777,1736777434869,-500.0,9.996e-05,2]
[348767780,1736777434881,-150.0,9.996e-05,2]
[348767782,1736777434893,-500.0,9.996e-05,2]
[348767784,1736777434904,-500.0,9.996e-05,2]
[348767786,1736777434915,-1569.8019419,9.996e-05,2]
[348767788,1736777434927,-500.0,9.996e-05,2]
[348767790,1736777434938,-500.0,9.996e-05,2]
[348767792,1736777434949,-500.0,9.996e-05,2]
[348767795,1736777434960,-210.99585484,9.996e-05,2]
[348767797,1736777434971,-500.0,9.996e-05,2]
[348767799,1736777434982,-500.0,9.996e-05,2]
[348767801,1736777434993,-500.0,9.996e-05,2]
[348767803,1736777435005,-371.89187931,9.996e-05,2]
[348767805,1736777435016,-500.0,9.996e-05,2]
[348767808,1736777435027,-500.0,9.996e-05,2]
[348767810,1736777435038,-500.0,9.996e-05,2]
[348767812,1736777435049,-500.0,9.996e-05,2]
[348767814,1736777435060,-500.0,9.996e-05,2]
[348767816,1736777435071,-500.0,9.996e-05,2]
[348767818,1736777435083,-500.0,9.996e-05,2]
[348767821,1736777435097,-500.0,9.996e-05,2]
[348767823,1736777435107,-500.0,9.996e-05,2]
[348767825,1736777435119,-500.0,9.996e-05,2]
[348767827,1736777435131,-500.0,9.996e-05,2]
[348767829,1736777435142,-500.0,9.996e-05,2]
[348767832,1736777435153,-500.0,9.996e-05,2]
[348767834,1736777435164,-500.0,9.996e-05,2]
[348767837,1736777435181,-500.0,9.996e-05,2]
[348767839,1736777435199,-500.0,9.996e-05,2]
[348767842,1736777435212,-500.0,9.996e-05,2]
[348767844,1736777435225,-500.0,9.996e-05,2]
[348767846,1736777435238,-500.0,9.996e-05,2]
[348767849,1736777435251,-500.0,9.996e-05,2]
[348767851,1736777435264,-500.0,9.996e-05,2]
[348767853,1736777435276,-500.0,9.996e-05,2]
[348767856,1736777435289,-500.0,9.996e-05,2]
[348767858,1736777435303,-500.0,9.996e-05,2]
[348767860,1736777435315,-500.0,9.996e-05,2]
[348767863,1736777435327,-500.0,9.996e-05,2]
[348767865,1736777435342,-500.0,9.996e-05,2]
[348767867,1736777435355,-500.0,9.996e-05,2]
[348767869,1736777435367,-1107.95,9.996e-05,2]
[348767872,1736777435379,-3147.5,9.996e-05,2]
[348767874,1736777435391,-500.0,9.996e-05,2]
[348767876,1736777435403,-500.0,9.996e-05,2]
[348767878,1736777435415,-794.02,9.996e-05,2]
[348767881,1736777435427,-674.05,9.996e-05,2]
[348767883,1736777435438,-872.35,9.996e-05,2]
[348767885,1736777435450,-1319.23,9.996e-05,2]
[348767887,1736777435461,-1575.65,9.996e-05,2]
[348767889,1736777435473,-500.0,9.996e-05,2]
[348767892,1736777435484,-2283.69,9.996e-05,2]
[348767894,1736777435496,-680.21,9.996e-05,2]
[348767896,1736777435509,-1931.31,9.996e-05,2]
[348767898,1736777435521,-500.0,9.996e-05,2]
[348767900,1736777435533,-1060.09,9.996e-05,2]
[348767902,1736777435547,-1040.65,9.996e-05,2]
[348767904,1736777435560,-761.73,9.996e-05,2]
[348767906,1736777435574,-435.64418218,9.996e-05,2]
[348767909,1736777435592,-262.84581782,9.996e-05,2]
[348767911,1736777435604,-637.412955,9.996e-05,2]
[348767913,1736777435615,-49.57257718,9.996e-05,2]
[348767917,1736777435650,-108.70839882,9.996e-05,2]
[348767919,1736777435661,-159.897959,9.996e-05,2]
[348767922,1736777435672,-1037.38,9.996e-05,2]
[348767924,1736777435683,-2091.78,9.996e-05,2]
[348767926,1736777435695,-551.25469536,0.0001,2]
[348767928,1736777435706,-1000.0,0.0001009,2]
[348767930,1736777435717,-418.96,0.0001009,2]
[348767933,1736777435729,-250.0,0.00010111,2]
[348767935,1736777435740,-156.71019135,0.00010136,2]
[348767939,1736777435774,-343.28980865,0.00010136,2]
[348767941,1736777435786,-220.31805358,0.00010136,2]
[348767944,1736777435799,-895.1614,0.00010136,2]
[348767947,1736777435820,-319.53054642,0.00010136,2]
[348767949,1736777435831,-1143.34,0.00010136,2]
[348767952,1736777435844,-1009.42,0.00010136,2]
[348767954,1736777435856,-208.58629067,0.00010136,2]
[348767956,1736777435869,-291.41370933,0.00010136,2]
[348767958,1736777435880,-1455.34,0.00010136,2]
[348767960,1736777435891,-522.89,0.00010136,2]
[348767963,1736777435903,-500.0,0.00010136,2]
[348767965,1736777435913,-62.65135541,0.00010136,2]
[348767967,1736777435926,-432.684,0.00010136,2]
[348767969,1736777435939,-4.66464459,0.00010136,2]
[348767971,1736777435950,-310.89666056,0.00010136,2]
[348768120,1736777437713,-189.10333944,0.00010136,2]
[348768121,1736777437722,-1163.72,0.00010136,2]
[348768122,1736777437732,-500.0,0.00010136,2]
[348768123,1736777437741,-645.57,0.00010136,2]
[348768124,1736777437750,-389.92578225,0.00010136,2]
[348768125,1736777437760,-500.0,0.00010136,2]
[348768126,1736777437769,-500.0,0.00010136,2]
[348768127,1736777437778,-159.04,0.00010137,2]
[348768128,1736777437787,-671.58,0.00010168,2]
[348768129,1736777437797,-500.0,0.00010169,2]
[348768130,1736777437806,-500.0,0.00010268,2]
[348768131,1736777437816,-500.0,0.00010268,2]
[348768132,1736777437825,-500.0,0.00010268,2]
[348768133,1736777437835,-500.0,0.00010268,2]
[348768134,1736777437844,-23.150348,0.00010268,2]